fUSD/lending_fUSD_20250225
["ID","MTS","AMOUNT","RATE_DAILY","PERIOD"]
[354481610,1740525080411,-941.15,0.00047397,120]
[354481611,1740525080421,-500.0,0.00047397,120]
[354481612,1740525080432,-500.0,0.00047397,120]
[354481613,1740525080442,-500.0,0.00047397,120]
[354481614,1740525080452,-528.44,0.00047397,120]
[354481615,1740525080462,-500.0,0.00047397,120]
[354481616,1740525080474,-1239.32,0.00047397,120]
[354481617,1740525080485,-809.18,0.00047397,120]
[354481618,1740525080495,-1563.56,0.00047397,120]
[354481619,1740525080505,-1329.1,0.00047397,120]
[354481620,1740525080516,-500.0,0.00047397,120]
[354481621,1740525080526,-500.0,0.00047397,120]
[354481622,1740525080536,-2176.41,0.00047397,120]
[354481623,1740525080547,-500.0,0.00047397,120]
[354481624,1740525080558,-1038.76,0.00047397,120]
[354481625,1740525080568,-1046.05,0.00047397,120]
[354481626,1740525080579,-2557.04,0.00047397,120]
[354481627,1740525080589,-500.0,0.00047397,120]
[354481628,1740525080599,-2237.87,0.00047397,120]
[354481629,1740525080610,-500.0,0.00047397,120]
[354481630,1740525080620,-500.0,0.00047397,120]
[354481631,1740525080630,-3102.5,0.00047397,120]
[354481632,1740525080641,-444.79970982,0.00047397,120]
[354481633,1740525080652,-500.0,0.00047397,120]
[354481634,1740525080663,-2180.56,0.00047397,120]
[354481635,1740525080673,-237.6218609,0.00047397,120]
[354481636,1740525080684,-500.0,0.00047397,120]
[354481637,1740525080930,-1055.16,0.00047397,120]
[354481638,1740525080941,-500.0,0.00047397,120]
[354481639,1740525080951,-700.04,0.00047397,120]
[354481640,1740525080960,-151.0,0.00047397,14]
[354481641,1740525080970,-500.0,0.00047397,120]
[354481642,1740525080979,-932.23,0.00047397,120]
[354481643,1740525080988,-972.69,0.00047397,120]
[354481644,1740525080998,-500.0,0.00047397,120]
[354481645,1740525081007,-812.48,0.00047397,120]
[354481646,1740525081016,-1365.7,0.00047397,120]
[354481647,1740525081026,-221.17,0.00047397,7]
[354481648,1740525081036,-1556.28,0.00047397,120]
[354481649,1740525081046,-643.17,0.00047397,120]
[354481650,1740525081055,-1681.18,0.00047397,120]
[354481651,1740525081065,-500.0,0.00047397,120]
[354481652,1740525081074,-500.0,0.00047397,120]
[354481653,1740525081084,-500.0,0.00047397,120]
[354481654,1740525081093,-762.11,0.00047397,120]
[354481655,1740525081103,-500.0,0.00047397,120]
[354481656,1740525081112,-1517.67,0.00047397,120]
[354481657,1740525081122,-500.0,0.00047397,120]
[354481658,1740525081131,-500.0,0.00047397,120]
[354481659,1740525081141,-500.0,0.00047397,120]
[354481660,1740525081150,-500.0,0.00047397,120]
[354481661,1740525081160,-500.0,0.00047397,120]
[354481662,1740525081169,-2000.0,0.00047397,30]
[354481663,1740525081178,-697.13,0.00047397,120]
[354481664,1740525081188,-500.0,0.00047397,120]
[354481665,1740525081199,-500.0,0.00047397,120]
[354481666,1740525081208,-500.0,0.00047397,120]
[354481667,1740525081218,-2246.49,0.00047397,120]
[354481668,1740525081227,-676.45,0.00047397,120]
[354481669,1740525081237,-500.0,0.00047397,120]
[354481670,1740525081246,-2485.58,0.00047397,120]
[354481671,1740525081255,-500.0,0.00047397,120]
[354481672,1740525081266,-500.0,0.00047397,120]
[354481673,1740525081276,-757.3,0.00047397,120]
[354481674,1740525081285,-500.0,0.00047397,120]
[354481675,1740525081294,-616.34,0.00047397,120]
[354481676,1740525081303,-851.04,0.00047397,120]
[354481677,1740525081312,-796.54,0.00047397,120]
[354481678,1740525081322,-1896.83,0.00047397,120]
[354481679,1740525081331,-500.0,0.00047397,120]
[354481680,1740525081340,-1503.74,0.00047397,120]
[354481681,1740525081349,-544.12,0.00047397,120]
[354481682,1740525081358,-804.43,0.00047397,120]
[354481683,1740525081367,-500.0,0.00047397,120]
[354481684,1740525081377,-151.0,0.00047397,14]
[354481685,1740525081386,-1670.65,0.00047397,120]
[354481686,1740525081396,-151.0,0.00047397,14]
[354481687,1740525081405,-2523.18,0.00047397,120]
[354481688,1740525081415,-961.47,0.00047397,120]
[354481689,1740525081425,-500.0,0.00047397,120]
[354481690,1740525081434,-2386.5,0.00047397,120]
[354481691,1740525081443,-500.0,0.00047397,120]
[354481692,1740525081453,-500.0,0.00047397,120]
[354481693,1740525081463,-500.0,0.00047397,120]
[354481694,1740525081474,-1399.8,0.00047397,120]
[354481695,1740525081485,-1298.67,0.00047397,120]
[354481696,1740525081495,-1273.31,0.00047397,120]
[354481697,1740525081504,-545.82,0.00047397,120]
[354481698,1740525081514,-1406.97,0.00047397,120]
[354481699,1740525081524,-880.77,0.00047397,120]
[354481700,1740525081533,-810.33,0.00047397,120]
[354481701,1740525081543,-1580.97,0.00047397,120]
[354481702,1740525081555,-1310.98,0.00047397,120]
[354481703,1740525081565,-1077.25,0.00047397,120]
[354481704,1740525081574,-500.0,0.00047397,120]
[354481705,1740525081584,-151.0,0.00047397,14]
[354481706,1740525081594,-505.45,0.00047397,120]
[354481707,1740525081603,-151.0,0.00047397,14]
[354481708,1740525081613,-151.416641,0.00047397,14]
[354481709,1740525081622,-500.0,0.00047397,120]
[354481710,1740525081632,-500.0,0.00047397,120]
[354481711,1740525081642,-904.45,0.00047397,120]
[354481712,1740525081651,-2988.53,0.00047397,120]
[354481713,1740525081662,-500.0,0.00047397,120]
[354481714,1740525081672,-151.416641,0.00047397,14]
[354481715,1740525081681,-500.0,0.00047397,120]
[354481716,1740525081691,-500.0,0.00047397,120]
[354481717,1740525081700,-520.82683664,0.00047397,120]
[354481718,1740525081710,-3500.0,0.00047397,120]
[354481719,1740525081720,-1908.67,0.00047397,120]
[354481720,1740525081730,-1789.03,0.00047397,120]
[354481721,1740525081739,-500.0,0.00047397,120]
[354481722,1740525081749,-3346.82,0.00047397,120]
[354481723,1740525081759,-792.56,0.00047397,120]
[354481724,1740525081769,-572.46,0.00047397,120]
[354481725,1740525081779,-500.0,0.00047397,120]
[354481726,1740525081788,-500.0,0.00047397,120]
[354481727,1740525081798,-6205.29,0.00047397,120]
[354481728,1740525081808,-530.28,0.00047397,120]
[354481729,1740525081818,-552.71,0.00047397,120]
[354481730,1740525081828,-1610.37,0.00047397,120]
[354481731,1740525081837,-1334.76,0.00047397,120]
[354481732,1740525081847,-2913.23,0.00047397,120]
[354481733,1740525081857,-500.74,0.00047397,120]
[354481734,1740525081867,-1604.53,0.00047397,120]
[354481735,1740525081877,-1476.1,0.00047397,120]
[354481736,1740525081886,-500.0,0.00047397,120]
[354481737,1740525081896,-500.0,0.00047397,120]
[354481738,1740525081905,-1909.28,0.00047397,120]
[354481739,1740525081916,-1883.07,0.00047397,120]
[354481740,1740525081926,-6757.97,0.00047397,120]
[354481741,1740525081935,-810.97,0.00047397,120]
[354481742,1740525081945,-694.89,0.00047397,120]
[354481743,1740525081955,-500.0,0.00047397,120]
[354481744,1740525081965,-495.01040801,0.00047397,120]
[354481745,1740525081973,-500.0,0.00047397,120]
[354481746,1740525081983,-500.0,0.00047397,120]
[354481747,1740525081993,-2755.45,0.00047397,120]
[354481748,1740525082002,-1383.79,0.00047397,120]
[354481749,1740525082011,-500.0,0.00047397,120]
[354481750,1740525082021,-500.0,0.00047397,120]
[354481751,1740525082030,-755.03,0.00047397,120]
[354481752,1740525082040,-500.0,0.00047397,120]
[354481753,1740525082049,-1090.86,0.00047397,120]
[354481754,1740525082059,-2516.39,0.00047397,120]
[354481755,1740525082069,-760.33,0.00047397,120]
[354481756,1740525082078,-2745.94,0.00047397,120]
[354481757,1740525082088,-2251.05,0.00047397,120]
[354481758,1740525082097,-500.0,0.00047397,7]
[354481759,1740525082107,-540.66,0.00047397,120]
[354481760,1740525082116,-151.0,0.00047397,14]
[354481761,1740525082126,-2508.96,0.00047397,120]
[354481762,1740525082135,-500.0,0.00047397,120]
[354481763,1740525082144,-400.0,0.00047397,14]
[354481764,1740525082153,-1188.93,0.00047397,120]
[354481765,1740525082163,-1762.88,0.00047397,120]
[354481766,1740525082172,-500.0,0.00047397,120]
[354481767,1740525082181,-1574.95,0.00047397,120]
[354481768,1740525082191,-500.0,0.00047397,120]
[354481769,1740525082200,-2249.98,0.00047397,120]
[354481770,1740525082210,-720.74,0.00047397,120]
[354481771,1740525082219,-542.77,0.00047397,120]
[354481772,1740525082228,-400.0,0.00047397,14]
[354481773,1740525082238,-500.0,0.00047397,120]
[354481774,1740525082247,-550.39283715,0.00047397,120]
[354481775,1740525082257,-2314.69,0.00047397,120]
[354481776,1740525082267,-1042.99,0.00047397,120]
[354481777,1740525082276,-886.17,0.00047397,120]
[354481778,1740525082286,-500.0,0.00047397,120]
[354481779,1740525082295,-732.45,0.00047397,120]
[354481780,1740525082304,-500.0,0.00047397,120]
[354481781,1740525082314,-1109.18,0.00047397,120]
[354481782,1740525082323,-2382.41,0.00047397,120]
[354481783,1740525082333,-3544.28,0.00047397,120]
[354481784,1740525082342,-500.0,0.00047397,120]
[354481785,1740525082352,-496.36302208,0.00047397,120]
[354481786,1740525082362,-500.0,0.00047397,120]
[354481787,1740525082371,-2440.16,0.00047397,120]
[354481788,1740525082381,-1797.32,0.00047397,120]
[354481789,1740525082390,-3035.46,0.00047397,120]
[354481790,1740525082399,-500.0,0.00047397,120]
[354481791,1740525082409,-633.9983973,0.00047397,120]
[354481792,1740525082419,-465.99301499,0.00047397,120]
[354481793,1740525082428,-2751.58,0.00047397,120]
[354481794,1740525082438,-500.0,0.00047397,120]
[354481795,1740525082447,-620.05,0.00047397,40]
[354481796,1740525082456,-1827.79,0.00047397,120]
[354481797,1740525082466,-500.0,0.00047397,120]
[354481798,1740525082477,-1260.14,0.00047397,120]
[354481799,1740525082488,-2536.33,0.00047397,120]
[354481800,1740525082497,-500.0,0.00047397,120]
[354481801,1740525082506,-672.65,0.00047397,120]
[354481802,1740525082517,-2395.14,0.00047397,120]
[354481803,1740525082527,-2506.44,0.00047397,120]
[354481804,1740525082536,-743.51,0.00047397,120]
[354481805,1740525082546,-2194.84,0.00047397,120]
[354481806,1740525082556,-500.0,0.00047397,120]
[354481807,1740525082565,-500.0,0.00047397,120]
[354481808,1740525082575,-500.0,0.00047397,2]
[354481809,1740525082584,-1563.81,0.00047397,120]
[354481810,1740525082594,-589.49,0.00047397,120]
[354481811,1740525082604,-724.08,0.00047397,120]
[354481812,1740525082614,-5430.09,0.00047397,120]
[354481813,1740525082623,-2655.98,0.00047397,120]
[354481814,1740525082633,-1400.39,0.00047397,120]
[354481815,1740525082643,-500.0,0.00047397,120]
[354481816,1740525082653,-500.0,0.00047397,120]
[354481817,1740525082663,-2796.49,0.00047397,120]
[354481818,1740525082673,-2566.46,0.00047397,120]
[354481819,1740525082683,-640.49350011,0.00047397,120]
[354481820,1740525082692,-500.0,0.00047397,120]
[354481821,1740525082701,-533.75,0.00047397,120]
[354481822,1740525082710,-500.0,0.00047397,120]
[354481823,1740525082720,-1640.61,0.00047397,120]
[354481824,1740525082729,-1861.39,0.00047397,120]
[354481825,1740525082740,-500.0,0.00047397,120]
[354481826,1740525082750,-151.0,0.00047397,14]
[354481827,1740525082759,-151.0,0.00047397,14]
[354481828,1740525082768,-1030.17,0.00047397,120]
[354481829,1740525082778,-1972.41,0.00047397,120]
[354481830,1740525082788,-521.26,0.00047397,120]
[354481831,1740525082797,-1437.56,0.00047397,120]
[354481832,1740525082807,-1655.29,0.00047397,120]
[354481833,1740525082816,-1756.09,0.00047397,120]
[354481834,1740525082826,-840.32,0.00047397,120]
[354481835,1740525082837,-3628.74,0.00047397,120]
[354481836,1740525082846,-2499.17,0.00047397,120]
[354481837,1740525082856,-151.0,0.00047397,14]
[354481838,1740525082866,-500.0,0.00047397,120]
[354481839,1740525082875,-151.0,0.00047397,14]
[354481840,1740525082884,-3926.4,0.00047397,120]
[354481841,1740525082894,-151.0,0.00047397,14]
[354481842,1740525082903,-1163.02,0.00047397,120]
[354481843,1740525082912,-151.0,0.00047397,14]
[354481844,1740525082921,-1291.9,0.00047397,120]
[354481845,1740525082931,-500.0,0.00047397,120]
[354481846,1740525082940,-3056.11,0.00047397,120]
[354481847,1740525082949,-500.0,0.00047397,120]
[354481848,1740525082959,-771.6,0.00047397,120]
[354481849,1740525082968,-500.0,0.00047397,120]
[354481850,1740525082977,-1441.32,0.00047397,120]
[354481851,1740525082987,-4678.34,0.00047397,120]
[354481852,1740525082996,-500.0,0.00047397,120]
[354481853,1740525083005,-2952.33,0.00047397,120]
[354481854,1740525083015,-2012.1,0.00047397,120]
[354481855,1740525083024,-501.69,0.00047397,120]
[354481856,1740525083034,-784.89,0.00047397,120]
[354481857,1740525083043,-500.0,0.00047397,120]
[354481858,1740525083052,-969.7,0.00047397,120]
[354481859,1740525083061,-10455.7,0.00047397,120]
[354481860,1740525083070,-500.0,0.00047397,120]
[354481861,1740525083080,-500.0,0.00047397,120]
[354481862,1740525083088,-1512.42,0.00047397,120]
[354481863,1740525083097,-2828.88,0.00047397,120]
[354481864,1740525083106,-500.0,0.00047397,120]
[354481865,1740525083116,-171.254786,0.00047397,14]
[354481866,1740525083125,-171.254786,0.00047397,14]
[354481867,1740525083134,-912.73,0.00047397,120]
[354481868,1740525083143,-2241.97,0.00047397,120]
[354481869,1740525083152,-500.0,0.00047397,120]
[354481870,1740525083161,-3595.95,0.00047397,120]
[354481871,1740525083171,-3469.63,0.00047397,120]
[354481872,1740525083180,-935.01,0.00047397,120]
[354481873,1740525083190,-602.99,0.00047397,120]
[354481874,1740525083280,-171.254786,0.00047397,14]
[354481875,1740525083291,-500.0,0.00047397,120]
[354481876,1740525083300,-171.254786,0.00047397,14]
[354481877,1740525083309,-2694.08,0.00047397,120]
[354481878,1740525083319,-1514.82,0.00047397,120]
[354481879,1740525083329,-500.0,0.00047397,120]
[354481880,1740525083338,-500.0,0.00047397,120]
[354481881,1740525083347,-2106.7,0.00047397,120]
[354481882,1740525083356,-500.0,0.00047397,120]
[354481883,1740525083365,-636.79186926,0.00047397,120]
[354481884,1740525083374,-812.71,0.00047397,120]
[354481885,1740525083383,-151.0,0.00047397,14]
[354481886,1740525083392,-1131.11,0.00047397,120]
[354481887,1740525083401,-151.0,0.00047397,14]
[354481888,1740525083411,-1037.66,0.00047397,120]
[354481889,1740525083419,-500.0,0.00047397,120]
[354481890,1740525083429,-4297.03,0.00047397,120]
[354481891,1740525083439,-500.0,0.00047397,120]
[354481892,1740525083448,-966.67,0.00047397,120]
[354481893,1740525083457,-810.49,0.00047397,120]
[354481894,1740525083466,-4138.0,0.00047397,120]
[354481895,1740525083476,-500.0,0.00047397,120]
[354481896,1740525083487,-476.969324,0.00047397,14]
[354481897,1740525083496,-476.969324,0.00047397,14]
[354481898,1740525083505,-5544.4,0.00047397,120]
[354481899,1740525083514,-500.0,0.00047397,120]
[354481900,1740525083524,-476.969324,0.00047397,14]
[354481901,1740525083533,-2643.13,0.00047397,120]
[354481902,1740525083542,-476.969324,0.00047397,14]
[354481903,1740525083552,-2255.61,0.00047397,120]
[354481904,1740525083561,-2618.07264,0.00047397,14]
[354481905,1740525083571,-2618.07264,0.00047397,14]
[354481906,1740525083580,-4692.46,0.00047397,120]
[354481907,1740525083589,-500.0,0.00047397,120]
[354481908,1740525083598,-1284.89,0.00047397,120]
[354481909,1740525083607,-1086.9,0.00047397,120]
[354481910,1740525083616,-500.0,0.00047397,120]
[354481911,1740525083626,-2618.07264,0.00047397,14]
[354481912,1740525083635,-2618.07264,0.00047397,14]
[354481913,1740525083645,-1694.06,0.00047397,120]
[354481914,1740525083655,-3540.31,0.00047397,120]
[354481915,1740525083665,-500.0,0.00047397,120]
[354481916,1740525083675,-303.441054,0.00047397,14]
[354481917,1740525083684,-3276.32,0.00047397,120]
[354481918,1740525083693,-303.441054,0.00047397,14]
[354481919,1740525083703,-907.62,0.00047397,120]
[354481920,1740525083712,-4609.63,0.00047397,120]
[354481921,1740525083722,-1727.68,0.00047397,120]
[354481922,1740525083732,-500.0,0.00047397,120]
[354481923,1740525083742,-500.0,0.00047397,120]
[354481924,1740525083753,-303.441054,0.00047397,14]
[354481925,1740525083763,-500.0,0.00047397,120]
[354481926,1740525083773,-303.441054,0.00047397,14]
[354481927,1740525083784,-500.0,0.00047397,120]
[354481928,1740525083794,-1739.16,0.00047397,120]
[354481929,1740525083804,-4245.72,0.00047397,120]
[354481930,1740525083814,-511.75,0.00047397,120]
[354481931,1740525083823,-3011.11,0.00047397,120]
[354481932,1740525083833,-500.0,0.00047397,120]
[354481933,1740525083842,-1366.37,0.00047397,120]
[354481934,1740525083851,-2072.49,0.00047397,120]
[354481935,1740525083860,-1124.65,0.00047397,120]
[354481936,1740525083869,-500.0,0.00047397,120]
[354481937,1740525083878,-508.4,0.00047397,120]
[354481938,1740525083887,-2269.51,0.00047397,120]
[354481939,1740525083896,-500.0,0.00047397,120]
[354481940,1740525083906,-500.0,0.00047397,120]
[354481941,1740525083915,-500.0,0.00047397,120]
[354481942,1740525083925,-3313.32,0.00047397,120]
[354481943,1740525083934,-2235.99,0.00047397,120]
[354481944,1740525083944,-586.5,0.00047397,120]
[354481945,1740525083953,-4350.19,0.00047397,120]
[354481946,1740525083962,-500.0,0.00047397,120]
[354481947,1740525083972,-500.0,0.00047397,120]
[354481948,1740525083981,-500.0,0.00047397,120]
[354481949,1740525083990,-701.46,0.00047397,120]
[354481950,1740525084001,-974.01,0.00047397,120]
[354481951,1740525084010,-3045.42,0.00047397,120]
[354481952,1740525084019,-2130.47,0.00047397,120]
[354481953,1740525084029,-824.89,0.00047397,120]
[354481954,1740525084038,-500.0,0.00047397,120]
[354481955,1740525084048,-791.74,0.00047397,120]
[354481956,1740525084058,-4248.82,0.00047397,120]
[354481957,1740525084067,-151.0,0.00047397,14]
[354481958,1740525084076,-500.0,0.00047397,120]
[354481959,1740525084087,-866.99,0.00047397,120]
[354481960,1740525084097,-151.0,0.00047397,14]
[354481961,1740525084107,-3347.83,0.00047397,120]
[354481962,1740525084117,-500.0,0.00047397,120]
[354481963,1740525084127,-500.0,0.00047397,120]
[354481964,1740525084136,-500.0,0.00047397,120]
[354481965,1740525084146,-3209.63,0.00047397,120]
[354481966,1740525084155,-2354.51,0.00047397,120]
[354481967,1740525084165,-1776.94,0.00047397,120]
[354481968,1740525084174,-2055.66,0.00047397,20]
[354481969,1740525084183,-943.2,0.00047397,120]
[354481970,1740525084192,-1511.4,0.00047397,120]
[354481971,1740525084201,-1673.61,0.00047397,120]
[354481972,1740525084210,-4065.81,0.00047397,120]
[354481973,1740525084219,-1252.21,0.00047397,7]
[354481974,1740525084229,-4673.22,0.00047397,120]
[354481975,1740525084239,-4464.06,0.00047397,120]
[354481976,1740525084247,-500.0,0.00047397,120]
[354481977,1740525084256,-5401.71,0.00047397,120]
[354481978,1740525084266,-716.34,0.00047397,120]
[354481979,1740525084275,-2071.48,0.00047397,120]
[354481980,1740525084284,-1740.52,0.00047397,120]
[354481981,1740525084293,-500.0,0.00047397,120]
[354481982,1740525084303,-3081.17,0.00047397,120]
[354481983,1740525084312,-1998.56,0.00047397,120]
[354481984,1740525084322,-1249.09,0.00047397,120]
[354481985,1740525084332,-500.0,0.00047397,120]
[354481986,1740525084341,-5678.79,0.00047397,120]
[354481987,1740525084351,-5505.95,0.00047397,120]
[354481988,1740525084360,-758.94,0.00047397,120]
[354481989,1740525084370,-1325.19,0.00047397,120]
[354481990,1740525084379,-500.0,0.00047397,120]
[354481991,1740525084388,-500.0,0.00047397,120]
[354481992,1740525084397,-500.0,0.00047397,120]
[354481993,1740525084406,-500.0,0.00047397,120]
[354481994,1740525084417,-4287.38,0.00047397,120]
[354481995,1740525084426,-500.0,0.00047397,120]
[354481996,1740525084437,-651.930839,0.00047397,14]
[354481997,1740525084447,-500.0,0.00047397,120]
[354481998,1740525084457,-651.930839,0.00047397,14]
[354481999,1740525084466,-2679.91,0.00047397,120]
[354482000,1740525084479,-1690.61,0.00047397,120]
[354482001,1740525084488,-949.88,0.00047397,120]
[354482002,1740525084497,-3486.01,0.00047397,120]
[354482003,1740525084507,-616.55,0.00047397,120]
[354482004,1740525084517,-6857.38,0.00047397,100]
[354482005,1740525084526,-651.930839,0.00047397,14]
[354482006,1740525084535,-488.78811427,0.00047397,120]
[354482007,1740525084544,-651.930839,0.00047397,14]
[354482008,1740525084554,-2924.21,0.00047397,120]
[354482009,1740525084563,-1294.3,0.00047397,120]
[354482010,1740525084572,-500.0,0.00047397,120]
[354482011,1740525084582,-500.0,0.00047397,120]
[354482012,1740525084591,-500.0,0.00047397,120]
[354482013,1740525084600,-2360.73,0.00047397,120]
[354482014,1740525084609,-500.0,0.00047397,120]
[354482015,1740525084621,-204.13078113,0.00047397,120]
[354482016,1740525085259,-2722.50921887,0.00047397,120]
[354482017,1740525085269,-3837.66,0.00047397,120]
[354482018,1740525085279,-1480.06918,0.00047397,14]
[354482019,1740525085289,-500.0,0.00047397,120]
[354482020,1740525085299,-1480.06918,0.00047397,14]
[354482021,1740525085309,-500.0,0.00047397,120]
[354482022,1740525085318,-3338.22,0.00047397,120]
[354482023,1740525085329,-2471.68,0.00047397,120]
[354482024,1740525085338,-1467.33105266,0.00047397,14]
[354482025,1740525085350,-12.73812734,0.00047397,14]
[354482026,1740525085360,-1480.06918,0.00047397,14]
[354482027,1740525085369,-514.49049167,0.00047397,120]
[354482028,1740525085945,-7166.79637468,0.00046557,15]
[354482029,1740525088489,-608.84495632,0.00046557,15]
[354482030,1740525088501,-65.12259908,0.00046557,15]
[354482031,1740525088511,-500.0,0.00046575,120]
[354482032,1740525088520,-155.08676092,0.00046575,120]
[354482035,1740525908491,1050.0,0.0001,2]
[354482036,1740525908527,136580.9800875,0.0001,2]
[354482037,1740525999657,200.0,0.00023,30]
[354482058,1740526232133,-222.13774929,0.0002389,2]
[354482059,1740526232142,-1798.16167554,0.0002389,2]
[354482060,1740526232152,-1717.81083695,0.0002399,2]
[354482061,1740526232161,-599.21434146,0.0002399,2]
[354482062,1740526232170,-2680.06898776,0.00024205,2]
[354482063,1740526232179,-499.999999,0.0003121,2]
[354482064,1740526232188,-13543.88247768,0.00033988,30]
[354482065,1740526232197,-158.663894,0.00034989,2]
[354482066,1740526232206,-200.0,0.0004,30]
[354482067,1740526232215,-200.0,0.0004,30]
[354482068,1740526232224,-200.0,0.0004,120]
[354482069,1740526232233,-200.0,0.0004,120]
[354482070,1740526232242,-200.0,0.0004,60]
[354482071,1740526232253,-500.0,0.0004,120]
[354482072,1740526232262,-200.0,0.00042,60]
[354482073,1740526232272,-200.0,0.00042,30]
[354482074,1740526232281,-200.0,0.00042,30]
[354482075,1740526232291,-200.0,0.00042,30]
[354482076,1740526232301,-162.66,0.00042,30]
[354482077,1740526232311,-331.07,0.00043824,2]
[354482078,1740526232321,-182.07,0.00044348,2]
[354482079,1740526232331,-250.0,0.00044729,2]
[354482080,1740526232341,-185.59099005,0.00044999,30]
[354482081,1740526232351,-1000.0,0.00044999,120]
[354482083,1740526232361,-900.0,0.00045,46]
[354482085,1740526232370,-200.0,0.00045,30]
[354482087,1740526232380,-200.0,0.00045,30]
[354482089,1740526232389,-200.0,0.00045,120]
[354482091,1740526232399,-200.0,0.00045,60]
[354482093,1740526232409,-200.0,0.00045,60]
[354482095,1740526232418,-1000.0,0.00045027,120]
[354482097,1740526232428,-1000.0,0.00045054,120]
[354482099,1740526232437,-1000.0,0.00045081,120]
[354482101,1740526232447,-1000.0,0.00045109,120]
[354482103,1740526232456,-1000.0,0.00045136,120]
[354482105,1740526232466,-160.43,0.00045158,2]
[354482107,1740526232476,-955.08,0.00045164,120]
[354482109,1740526232485,-1000.0,0.00045219,2]
[354482111,1740526232495,-264.14,0.00045713,120]
[354482114,1740526232506,-162.28,0.00045713,2]
[354482116,1740526232515,-153.0,0.00045808,2]
[354482118,1740526232524,-153.0,0.00045808,2]
[354482121,1740526232534,-153.0,0.00045808,2]
[354482123,1740526232543,-153.0,0.00045808,2]
[354482125,1740526232552,-153.0,0.00045808,2]
[354482127,1740526232561,-153.0,0.00045808,2]
[354482129,1740526232571,-200.0,0.00046,120]
[354482131,1740526232580,-200.0,0.00046,120]
[354482133,1740526232590,-200.0,0.00046,30]
[354482135,1740526232599,-200.0,0.00046,30]
[354482144,1740526232680,-300000.0,0.00046,120]
[354482146,1740526232691,-1931.0,0.00046,30]
[354482148,1740526232701,-331.07,0.00046088,2]
[354482150,1740526232710,-1033.3619973,0.00046449,4]
[354482152,1740526232719,-226.76777833,0.00046473,18]
[354482154,1740526232729,-7323.60824322,0.00046473,15]
[354482156,1740526232739,-173.02040946,0.00046475,24]
[354482158,1740526232748,-620.1832,0.00046475,2]
[354482160,1740526232757,-31721.5992,0.00046475,2]
[354482162,1740526232767,-332.9643,0.00046475,120]
[354482164,1740526232776,-641.0,0.00046494,2]
[354482166,1740526232785,-143696.95087607,0.000465,120]
[354482168,1740526232795,-150.0,0.00046522,2]
[354482170,1740526232804,-255523.222157,0.00046565,4]
[354482173,1740526232814,-220.78399916,0.00046573,2]
[354482175,1740526232829,-500.0,0.00046573,2]
[354482176,1740526232838,-474.06882691,0.00046573,10]
[354482178,1740526232847,-500.0,0.00046574,120]
[354482181,1740526232858,-500.0,0.00046574,120]
[354482183,1740526232868,-218.41025621,0.00046574,120]
[354482184,1740526232877,-500.0,0.00046574,120]
[354482187,1740526232886,-500.0,0.00046574,120]
[354482189,1740526232896,-344.91323908,0.00046575,120]
[354482191,1740526232907,-514.41606088,0.00046575,120]